[Event "Titled Tuesday Blitz February 21 Late 2023"]
[White "Sadovsky, Artem"]
[Black "Becerra, Juan David"]
[WhiteFideId "4155840"]
[BlackFideId "4404998"]
[WhiteElo "2276"]
[BlackElo "2382"]
[Result "1-0"]
[Round "11"]
[TimeControl "180+2"]
[Date "2023.02.21"]
[WhiteClock "0:02:34"]
[BlackClock "0:02:22"]

1. Nf3 {[%clk 0:02:39]}  d5 {[%clk 0:02:59]} 2. e3 {[%clk 0:02:40]}  Nf6 {[%clk 0:02:59]} 3. c4 {[%clk 0:02:41]}  c6 {[%clk 0:02:57]} 4. b3 {[%clk 0:02:42]}  Bg4 {[%clk 0:02:57]} 5. Bb2 {[%clk 0:02:43]}  Nbd7 {[%clk 0:02:56]} 6. Be2 {[%clk 0:02:43]}  e6 {[%clk 0:02:49]} 7. O-O {[%clk 0:02:43]}  Bd6 {[%clk 0:02:50]} 8. d3 {[%clk 0:02:41]}  O-O {[%clk 0:02:43]} 9. Nbd2 {[%clk 0:02:41]}  a5 {[%clk 0:02:42]} 10. Qc2 {[%clk 0:02:41]}  e5 {[%clk 0:02:39]} 11. cxd5 {[%clk 0:02:41]}  cxd5 {[%clk 0:02:39]} 12. Rad1 {[%clk 0:02:42]}  Rc8 {[%clk 0:02:33]} 13. Qb1 {[%clk 0:02:40]}  e4 {[%clk 0:02:30]} 14. dxe4 {[%clk 0:02:38]}  dxe4 {[%clk 0:02:29]} 15. Nxe4 {[%clk 0:02:39]}  Qc7 {[%clk 0:02:22]} 16. Nxd6 {[%clk 0:02:34]} 1-0


[Site "https://www.chess.com"]

[Event "Titled Tuesday Blitz February 21 Late 2023"]
[White "Chernomordik, Pavel"]
[Black "Remolar Gallen, Jose"]
[WhiteFideId "2804530"]
[BlackFideId "2215187"]
[WhiteElo "2150"]
[BlackElo "2285"]
[Result "1/2-1/2"]
[Round "11"]
[TimeControl "180+2"]
[Date "2023.02.21"]
[WhiteClock "0:00:09"]
[BlackClock "0:00:04"]

1. e4 {[%clk 0:03:00]}  c5 {[%clk 0:02:58]} 2. Nc3 {[%clk 0:03:00]}  d6 {[%clk 0:02:57]} 3. f4 {[%clk 0:02:59]}  g6 {[%clk 0:02:56]} 4. Nf3 {[%clk 0:02:59]}  Bg7 {[%clk 0:02:56]} 5. Bb5+ {[%clk 0:02:59]}  Bd7 {[%clk 0:02:55]} 6. Bc4 {[%clk 0:02:59]}  e6 {[%clk 0:02:55]} 7. d4 {[%clk 0:02:50]}  cxd4 {[%clk 0:02:50]} 8. Nxd4 {[%clk 0:02:49]}  a6 {[%clk 0:02:39]} 9. Nf3 {[%clk 0:02:43]}  Qc7 {[%clk 0:02:37]} 10. Bb3 {[%clk 0:02:41]}  Ne7 {[%clk 0:02:35]} 11. Be3 {[%clk 0:02:36]}  O-O {[%clk 0:02:29]} 12. O-O {[%clk 0:02:32]}  Nbc6 {[%clk 0:02:17]} 13. Qd2 {[%clk 0:02:28]}  Rad8 {[%clk 0:02:14]} 14. Rad1 {[%clk 0:02:25]}  Bc8 {[%clk 0:02:14]} 15. Qf2 {[%clk 0:02:23]}  Qb8 {[%clk 0:02:02]} 16. Bb6 {[%clk 0:02:12]}  Rd7 {[%clk 0:02:01]} 17. Qh4 {[%clk 0:02:07]}  h6 {[%clk 0:01:55]} 18. Kh1 {[%clk 0:01:56]}  d5 {[%clk 0:01:50]} 19. exd5 {[%clk 0:01:45]}  exd5 {[%clk 0:01:46]} 20. Nxd5 {[%clk 0:01:43]}  Nxd5 {[%clk 0:01:01]} 21. Rxd5 {[%clk 0:01:34]}  Rxd5 {[%clk 0:00:58]} 22. Bxd5 {[%clk 0:01:33]}  Qd6 {[%clk 0:00:57]} 23. c4 {[%clk 0:01:31]}  Ne7 {[%clk 0:00:48]} 24. Bd4 {[%clk 0:01:06]}  Nxd5 {[%clk 0:00:46]} 25. cxd5 {[%clk 0:01:01]}  Qxd5 {[%clk 0:00:43]} 26. Bxg7 {[%clk 0:01:00]}  Kxg7 {[%clk 0:00:44]} 27. b3 {[%clk 0:00:57]}  Bf5 {[%clk 0:00:39]} 28. Qf2 {[%clk 0:00:56]}  Re8 {[%clk 0:00:37]} 29. Qd4+ {[%clk 0:00:45]}  Qxd4 {[%clk 0:00:37]} 30. Nxd4 {[%clk 0:00:45]}  Kf6 {[%clk 0:00:35]} 31. Kg1 {[%clk 0:00:44]}  Rd8 {[%clk 0:00:32]} 32. Rd1 {[%clk 0:00:42]}  Bb1 {[%clk 0:00:22]} 33. a3 {[%clk 0:00:34]}  Be4 {[%clk 0:00:15]} 34. Kf2 {[%clk 0:00:34]}  Rd6 {[%clk 0:00:13]} 35. g3 {[%clk 0:00:33]}  g5 {[%clk 0:00:14]} 36. Ke3 {[%clk 0:00:31]}  Bg6 {[%clk 0:00:10]} 37. Rc1 {[%clk 0:00:31]}  Rd7 {[%clk 0:00:09]} 38. f5 {[%clk 0:00:25]}  Bxf5 {[%clk 0:00:08]} 39. Rf1 {[%clk 0:00:24]}  Re7+ {[%clk 0:00:07]} 40. Kd2 {[%clk 0:00:22]}  Re5 {[%clk 0:00:04]} 41. g4 {[%clk 0:00:22]}  h5 {[%clk 0:00:02]} 42. Rxf5+ {[%clk 0:00:20]}  Rxf5 {[%clk 0:00:03]} 43. gxf5 {[%clk 0:00:19]}  Ke5 {[%clk 0:00:03]} 44. Ke3 {[%clk 0:00:19]}  g4 {[%clk 0:00:03]} 45. a4 {[%clk 0:00:18]}  a5 {[%clk 0:00:02]} 46. Kd3 {[%clk 0:00:16]}  h4 {[%clk 0:00:02]} 47. Ke3 {[%clk 0:00:15]}  h3 {[%clk 0:00:02]} 48. Ne2 {[%clk 0:00:13]}  Kxf5 {[%clk 0:00:02]} 49. Kd4 {[%clk 0:00:12]}  Kg5 {[%clk 0:00:01]} 50. Ng3 {[%clk 0:00:11]}  f5 {[%clk 0:00:02]} 51. Ke5 {[%clk 0:00:11]}  f4 {[%clk 0:00:02]} 52. Ne4+ {[%clk 0:00:11]}  Kh4 {[%clk 0:00:03]} 53. Kxf4 {[%clk 0:00:11]}  b6 {[%clk 0:00:03]} 54. Ng3 {[%clk 0:00:10]}  b5 {[%clk 0:00:04]} 55. axb5 {[%clk 0:00:10]}  a4 {[%clk 0:00:04]} 56. bxa4 {[%clk 0:00:09]} 1/2-1/2


[Site "https://www.chess.com"]

[Event "Titled Tuesday Blitz February 21 Late 2023"]
[White "Buganca, Luiz Henrique Da Silva"]
[Black "Sonnenschein, Philipp"]
[WhiteFideId "2182289"]
[BlackFideId "16250877"]
[WhiteElo "1920"]
[BlackElo "2224"]
[Result "0-1"]
[Round "11"]
[TimeControl "180+2"]
[Date "2023.02.21"]
[WhiteClock "0:00:15"]
[BlackClock "0:00:12"]

1. d4 {[%clk 0:03:00]}  Nf6 {[%clk 0:03:00]} 2. c4 {[%clk 0:03:00]}  e6 {[%clk 0:02:59]} 3. Nf3 {[%clk 0:02:59]}  d5 {[%clk 0:02:59]} 4. Nc3 {[%clk 0:02:57]}  Bb4 {[%clk 0:02:59]} 5. Qc2 {[%clk 0:02:54]}  dxc4 {[%clk 0:02:58]} 6. e3 {[%clk 0:02:53]}  b5 {[%clk 0:02:58]} 7. Bd2 {[%clk 0:02:52]}  c6 {[%clk 0:02:48]} 8. a4 {[%clk 0:02:36]}  Bb7 {[%clk 0:02:45]} 9. axb5 {[%clk 0:02:25]}  Bxc3 {[%clk 0:02:45]} 10. Bxc3 {[%clk 0:02:22]}  cxb5 {[%clk 0:02:46]} 11. b3 {[%clk 0:02:23]}  O-O {[%clk 0:02:17]} 12. bxc4 {[%clk 0:02:22]}  bxc4 {[%clk 0:02:17]} 13. Bxc4 {[%clk 0:02:23]}  Nbd7 {[%clk 0:02:14]} 14. Bd3 {[%clk 0:02:17]}  Rc8 {[%clk 0:02:12]} 15. Qb2 {[%clk 0:02:01]}  Nd5 {[%clk 0:01:56]} 16. Ba5 {[%clk 0:01:58]}  N7b6 {[%clk 0:01:51]} 17. O-O {[%clk 0:01:57]}  Qd7 {[%clk 0:01:42]} 18. Ne5 {[%clk 0:01:50]}  Qd8 {[%clk 0:01:29]} 19. Rfc1 {[%clk 0:01:34]}  Qg5 {[%clk 0:01:27]} 20. Nf3 {[%clk 0:01:23]}  Qh5 {[%clk 0:01:21]} 21. Qb5 {[%clk 0:01:09]}  Qh6 {[%clk 0:01:14]} 22. Bd2 {[%clk 0:00:35]}  Qf6 {[%clk 0:01:05]} 23. Rxc8 {[%clk 0:00:28]}  Rxc8 {[%clk 0:01:04]} 24. Rxa7 {[%clk 0:00:28]}  Bc6 {[%clk 0:00:58]} 25. Qb1 {[%clk 0:00:27]}  Na4 {[%clk 0:00:42]} 26. Qc2 {[%clk 0:00:15]}  Bd7 {[%clk 0:00:38]} 27. Qb3 {[%clk 0:00:10]}  Nab6 {[%clk 0:00:34]} 28. h3 {[%clk 0:00:05]}  Rb8 {[%clk 0:00:30]} 29. e4 {[%clk 0:00:05]}  Nf4 {[%clk 0:00:30]} 30. e5 {[%clk 0:00:05]}  Qh6 {[%clk 0:00:25]} 31. Be4 {[%clk 0:00:03]}  g5 {[%clk 0:00:21]} 32. Qe3 {[%clk 0:00:03]}  Nc4 {[%clk 0:00:18]} 33. Qc3 {[%clk 0:00:02]}  Nxd2 {[%clk 0:00:17]} 34. Qxd2 {[%clk 0:00:03]}  Bb5 {[%clk 0:00:16]} 35. Ra8 {[%clk 0:00:02]}  Rxa8 {[%clk 0:00:15]} 36. Bxa8 {[%clk 0:00:03]}  Kg7 {[%clk 0:00:16]} 37. Kh2 {[%clk 0:00:03]}  Bf1 {[%clk 0:00:15]} 38. Ng1 {[%clk 0:00:02]}  Bc4 {[%clk 0:00:14]} 39. g3 {[%clk 0:00:03]}  Ng6 {[%clk 0:00:13]} 40. h4 {[%clk 0:00:03]}  gxh4 {[%clk 0:00:12]} 41. Qxh6+ {[%clk 0:00:03]}  Kxh6 {[%clk 0:00:13]} 42. Nf3 {[%clk 0:00:04]}  hxg3+ {[%clk 0:00:13]} 43. fxg3 {[%clk 0:00:04]}  Bd5 {[%clk 0:00:13]} 44. Bxd5 {[%clk 0:00:04]}  exd5 {[%clk 0:00:14]} 45. Nd2 {[%clk 0:00:04]}  Kg5 {[%clk 0:00:13]} 46. Nf1 {[%clk 0:00:05]}  Ne7 {[%clk 0:00:13]} 47. Ne3 {[%clk 0:00:06]}  Nc6 {[%clk 0:00:11]} 48. Kg2 {[%clk 0:00:06]}  Nxd4 {[%clk 0:00:11]} 49. Nxd5 {[%clk 0:00:07]}  Nc6 {[%clk 0:00:10]} 50. Nf6 {[%clk 0:00:07]}  h6 {[%clk 0:00:09]} 51. Nd7 {[%clk 0:00:07]}  Kf5 {[%clk 0:00:09]} 52. Kf3 {[%clk 0:00:08]}  Nxe5+ {[%clk 0:00:09]} 53. Nxe5 {[%clk 0:00:09]}  Kxe5 {[%clk 0:00:10]} 54. Kg4 {[%clk 0:00:10]}  Kf6 {[%clk 0:00:10]} 55. Kh5 {[%clk 0:00:10]}  Kg7 {[%clk 0:00:11]} 56. Kg4 {[%clk 0:00:11]}  Kg6 {[%clk 0:00:11]} 57. Kf4 {[%clk 0:00:12]}  f5 {[%clk 0:00:09]} 58. Ke5 {[%clk 0:00:12]}  Kg5 {[%clk 0:00:10]} 59. Ke6 {[%clk 0:00:13]}  Kg4 {[%clk 0:00:10]} 60. Ke5 {[%clk 0:00:12]}  Kxg3 {[%clk 0:00:10]} 61. Kxf5 {[%clk 0:00:13]}  h5 {[%clk 0:00:10]} 62. Ke4 {[%clk 0:00:14]}  h4 {[%clk 0:00:11]} 63. Ke3 {[%clk 0:00:15]}  h3 {[%clk 0:00:12]} 0-1


[Site "https://www.chess.com"]

[Event "Titled Tuesday Blitz February 21 Late 2023"]
[White "Preotu, Razvan"]
[Black "Poeta, Caio Medeiros"]
[WhiteFideId "2613280"]
[BlackFideId "2142660"]
[WhiteElo "2475"]
[BlackElo "2088"]
[Result "1-0"]
[Round "11"]
[TimeControl "180+2"]
[Date "2023.02.21"]
[WhiteClock "0:00:16"]
[BlackClock "0:00:01"]

1. e4 {[%clk 0:03:00]}  c6 {[%clk 0:02:59]} 2. Nc3 {[%clk 0:03:00]}  d5 {[%clk 0:03:00]} 3. Nf3 {[%clk 0:03:00]}  Bg4 {[%clk 0:03:00]} 4. h3 {[%clk 0:03:00]}  Bh5 {[%clk 0:02:59]} 5. g4 {[%clk 0:02:59]}  Bg6 {[%clk 0:02:58]} 6. exd5 {[%clk 0:03:00]}  cxd5 {[%clk 0:02:59]} 7. Bb5+ {[%clk 0:03:00]}  Nc6 {[%clk 0:03:00]} 8. Ne5 {[%clk 0:03:00]}  Rc8 {[%clk 0:02:59]} 9. d4 {[%clk 0:02:59]}  e6 {[%clk 0:02:59]} 10. Qe2 {[%clk 0:02:59]}  Bd6 {[%clk 0:02:20]} 11. h4 {[%clk 0:02:53]}  Bxe5 {[%clk 0:02:19]} 12. Qxe5 {[%clk 0:02:52]}  Qf6 {[%clk 0:02:14]} 13. Bxc6+ {[%clk 0:02:45]}  bxc6 {[%clk 0:02:08]} 14. h5 {[%clk 0:02:30]}  Qxe5+ {[%clk 0:01:42]} 15. dxe5 {[%clk 0:02:30]}  Bxc2 {[%clk 0:01:42]} 16. Be3 {[%clk 0:02:31]}  h6 {[%clk 0:01:24]} 17. Kd2 {[%clk 0:02:11]}  Bh7 {[%clk 0:01:23]} 18. Rhc1 {[%clk 0:02:04]}  Ne7 {[%clk 0:01:19]} 19. Bxa7 {[%clk 0:02:00]}  O-O {[%clk 0:01:15]} 20. Bc5 {[%clk 0:01:54]}  Rfe8 {[%clk 0:01:16]} 21. a4 {[%clk 0:01:43]}  Rb8 {[%clk 0:01:15]} 22. b4 {[%clk 0:01:42]}  f6 {[%clk 0:01:06]} 23. exf6 {[%clk 0:01:13]}  gxf6 {[%clk 0:01:05]} 24. a5 {[%clk 0:01:14]}  Kf7 {[%clk 0:00:39]} 25. a6 {[%clk 0:01:13]}  Nc8 {[%clk 0:00:29]} 26. a7 {[%clk 0:00:46]}  Ra8 {[%clk 0:00:29]} 27. Ra6 {[%clk 0:00:46]}  Rd8 {[%clk 0:00:26]} 28. Rxc6 {[%clk 0:00:38]}  Rd7 {[%clk 0:00:21]} 29. Ra1 {[%clk 0:00:30]}  d4 {[%clk 0:00:20]} 30. Nb5 {[%clk 0:00:22]}  Nxa7 {[%clk 0:00:16]} 31. Rxa7 {[%clk 0:00:18]}  Raxa7 {[%clk 0:00:16]} 32. Nxa7 {[%clk 0:00:19]}  Be4 {[%clk 0:00:16]} 33. Rd6 {[%clk 0:00:18]}  Rxd6 {[%clk 0:00:16]} 34. Bxd6 {[%clk 0:00:19]}  e5 {[%clk 0:00:17]} 35. b5 {[%clk 0:00:15]}  Ke6 {[%clk 0:00:17]} 36. Bf8 {[%clk 0:00:16]}  Bf3 {[%clk 0:00:15]} 37. Bxh6 {[%clk 0:00:16]}  Bxg4 {[%clk 0:00:15]} 38. b6 {[%clk 0:00:13]}  Kd7 {[%clk 0:00:15]} 39. Bg7 {[%clk 0:00:14]}  Bxh5 {[%clk 0:00:14]} 40. Bxf6 {[%clk 0:00:14]}  Bf3 {[%clk 0:00:03]} 41. Bxe5 {[%clk 0:00:14]}  Ke6 {[%clk 0:00:03]} 42. Bxd4 {[%clk 0:00:15]}  Bb7 {[%clk 0:00:02]} 43. Ke3 {[%clk 0:00:15]}  Kd5 {[%clk 0:00:02]} 44. f4 {[%clk 0:00:16]}  Ke6 {[%clk 0:00:02]} 45. Nb5 {[%clk 0:00:16]}  Bc6 {[%clk 0:00:02]} 46. Be5 {[%clk 0:00:15]}  Kf5 {[%clk 0:00:02]} 47. Nd4+ {[%clk 0:00:15]}  Kg6 {[%clk 0:00:01]} 48. Nxc6 {[%clk 0:00:16]} 1-0


[Site "https://www.chess.com"]

[Event "Titled Tuesday Blitz February 21 Late 2023"]
[White "Adewumi, Tanitoluwa"]
[Black "Jimenez Jimenez, Leandro"]
[WhiteFideId "30966396"]
[BlackFideId "6415253"]
[WhiteElo "2283"]
[BlackElo "2146"]
[Result "1-0"]
[Round "11"]
[TimeControl "180+2"]
[Date "2023.02.21"]
[WhiteClock "0:00:03"]
[BlackClock "0:00:13"]

1. e4 {[%clk 0:02:52]}  e5 {[%clk 0:02:59]} 2. Nf3 {[%clk 0:02:48]}  Nc6 {[%clk 0:02:59]} 3. Nc3 {[%clk 0:02:47]}  Nf6 {[%clk 0:02:59]} 4. Bb5 {[%clk 0:02:46]}  Nd4 {[%clk 0:02:56]} 5. O-O {[%clk 0:02:36]}  Nxb5 {[%clk 0:02:54]} 6. Nxb5 {[%clk 0:02:36]}  c6 {[%clk 0:02:51]} 7. Nc3 {[%clk 0:02:35]}  d6 {[%clk 0:02:51]} 8. d4 {[%clk 0:02:28]}  exd4 {[%clk 0:02:42]} 9. Nxd4 {[%clk 0:02:22]}  Be7 {[%clk 0:02:41]} 10. Re1 {[%clk 0:02:18]}  O-O {[%clk 0:02:40]} 11. h3 {[%clk 0:02:09]}  Re8 {[%clk 0:02:39]} 12. Bf4 {[%clk 0:02:06]}  Qb6 {[%clk 0:02:29]} 13. Rb1 {[%clk 0:01:48]}  Bf8 {[%clk 0:02:07]} 14. Nb3 {[%clk 0:01:42]}  d5 {[%clk 0:01:38]} 15. exd5 {[%clk 0:01:36]}  Rxe1+ {[%clk 0:01:36]} 16. Qxe1 {[%clk 0:01:08]}  cxd5 {[%clk 0:01:31]} 17. Be5 {[%clk 0:00:58]}  Bf5 {[%clk 0:00:50]} 18. Bxf6 {[%clk 0:00:55]}  Qxf6 {[%clk 0:00:50]} 19. Nxd5 {[%clk 0:00:55]}  Qc6 {[%clk 0:00:40]} 20. Qe5 {[%clk 0:00:43]}  Qxc2 {[%clk 0:00:30]} 21. Rc1 {[%clk 0:00:41]}  Qe4 {[%clk 0:00:30]} 22. Qxe4 {[%clk 0:00:35]}  Bxe4 {[%clk 0:00:31]} 23. Ne3 {[%clk 0:00:29]}  Rd8 {[%clk 0:00:18]} 24. f3 {[%clk 0:00:24]}  Bc6 {[%clk 0:00:09]} 25. Kf2 {[%clk 0:00:22]}  g6 {[%clk 0:00:05]} 26. Rd1 {[%clk 0:00:19]}  Rxd1 {[%clk 0:00:04]} 27. Nxd1 {[%clk 0:00:20]}  b6 {[%clk 0:00:05]} 28. Nc3 {[%clk 0:00:20]}  Bg7 {[%clk 0:00:04]} 29. Ke3 {[%clk 0:00:19]}  Kf8 {[%clk 0:00:04]} 30. Nd4 {[%clk 0:00:19]}  Bd7 {[%clk 0:00:03]} 31. Ndb5 {[%clk 0:00:17]}  a6 {[%clk 0:00:03]} 32. Nc7 {[%clk 0:00:17]}  Bc8 {[%clk 0:00:02]} 33. N7d5 {[%clk 0:00:15]}  Ke8 {[%clk 0:00:02]} 34. Nxb6 {[%clk 0:00:15]}  Bb7 {[%clk 0:00:02]} 35. Nc4 {[%clk 0:00:15]}  Kd7 {[%clk 0:00:02]} 36. Na4 {[%clk 0:00:13]}  Kc6 {[%clk 0:00:02]} 37. Na5+ {[%clk 0:00:13]}  Kc7 {[%clk 0:00:02]} 38. Nxb7 {[%clk 0:00:13]}  Kxb7 {[%clk 0:00:03]} 39. b3 {[%clk 0:00:13]}  Kc6 {[%clk 0:00:03]} 40. Kd3 {[%clk 0:00:11]}  Kb5 {[%clk 0:00:03]} 41. Nc3+ {[%clk 0:00:07]}  Kb4 {[%clk 0:00:03]} 42. Nd5+ {[%clk 0:00:08]}  Ka3 {[%clk 0:00:03]} 43. Nc7 {[%clk 0:00:08]}  a5 {[%clk 0:00:03]} 44. Kc2 {[%clk 0:00:06]}  Kxa2 {[%clk 0:00:02]} 45. Nb5 {[%clk 0:00:07]}  Bf8 {[%clk 0:00:01]} 46. g3 {[%clk 0:00:07]}  Bb4 {[%clk 0:00:02]} 47. g4 {[%clk 0:00:07]}  a4 {[%clk 0:00:02]} 48. bxa4 {[%clk 0:00:07]}  f5 {[%clk 0:00:01]} 49. h4 {[%clk 0:00:07]}  fxg4 {[%clk 0:00:02]} 50. fxg4 {[%clk 0:00:07]}  h5 {[%clk 0:00:02]} 51. gxh5 {[%clk 0:00:07]}  gxh5 {[%clk 0:00:03]} 52. Nc3+ {[%clk 0:00:06]}  Ka3 {[%clk 0:00:02]} 53. Nd5 {[%clk 0:00:05]}  Kxa4 {[%clk 0:00:03]} 54. Kd3 {[%clk 0:00:04]}  Be7 {[%clk 0:00:03]} 55. Nxe7 {[%clk 0:00:03]}  Kb5 {[%clk 0:00:03]} 56. Ke4 {[%clk 0:00:04]}  Kc5 {[%clk 0:00:03]} 57. Kf5 {[%clk 0:00:04]}  Kd6 {[%clk 0:00:04]} 58. Ng6 {[%clk 0:00:04]}  Kd5 {[%clk 0:00:04]} 59. Kg5 {[%clk 0:00:05]}  Ke6 {[%clk 0:00:04]} 60. Kxh5 {[%clk 0:00:06]}  Kf7 {[%clk 0:00:05]} 61. Kh6 {[%clk 0:00:06]}  Kg8 {[%clk 0:00:06]} 62. h5 {[%clk 0:00:06]}  Kf7 {[%clk 0:00:06]} 63. Kh7 {[%clk 0:00:06]}  Kf6 {[%clk 0:00:07]} 64. h6 {[%clk 0:00:06]}  Kg5 {[%clk 0:00:08]} 65. Kg7 {[%clk 0:00:06]}  Kg4 {[%clk 0:00:07]} 66. h7 {[%clk 0:00:06]}  Kf5 {[%clk 0:00:08]} 67. h8=Q {[%clk 0:00:06]}  Kg5 {[%clk 0:00:09]} 68. Qh4+ {[%clk 0:00:06]}  Kf5 {[%clk 0:00:10]} 69. Qf4+ {[%clk 0:00:06]}  Ke6 {[%clk 0:00:11]} 70. Qe5+ {[%clk 0:00:06]}  Kd7 {[%clk 0:00:11]} 71. Kf7 {[%clk 0:00:06]}  Kc6 {[%clk 0:00:12]} 72. Ne7+ {[%clk 0:00:04]}  Kd7 {[%clk 0:00:12]} 73. Qd5+ {[%clk 0:00:04]}  Kc7 {[%clk 0:00:12]} 74. Ke6 {[%clk 0:00:05]}  Kb6 {[%clk 0:00:13]} 75. Qc4 {[%clk 0:00:03]}  Kb7 {[%clk 0:00:13]} 76. Qc6+ {[%clk 0:00:03]}  Kb8 {[%clk 0:00:13]} 77. Qb6+ {[%clk 0:00:02]}  Ka8 {[%clk 0:00:13]} 78. Qb5 {[%clk 0:00:03]}  Ka7 {[%clk 0:00:13]} 79. Nc6+ {[%clk 0:00:03]}  Ka8 {[%clk 0:00:13]} 80. Qa6# {[%clk 0:00:03]} 1-0


[Site "https://www.chess.com"]

[Event "Titled Tuesday Blitz February 21 Late 2023"]
[White "Sztokbant, Bernardo Vainzoff"]
[Black "Jovic, Stanoje"]
[WhiteFideId "2115956"]
[BlackFideId "905020"]
[WhiteElo "2213"]
[BlackElo "2075"]
[Result "0-1"]
[Round "11"]
[TimeControl "180+2"]
[Date "2023.02.21"]
[WhiteClock "0:00:01"]
[BlackClock "0:00:43"]

1. e4 {[%clk 0:03:00]}  c6 {[%clk 0:03:00]} 2. d4 {[%clk 0:02:59]}  d5 {[%clk 0:03:00]} 3. exd5 {[%clk 0:02:59]}  cxd5 {[%clk 0:03:00]} 4. c4 {[%clk 0:03:00]}  Nf6 {[%clk 0:02:59]} 5. Nf3 {[%clk 0:03:01]}  Nc6 {[%clk 0:02:58]} 6. Nc3 {[%clk 0:03:02]}  Bg4 {[%clk 0:02:57]} 7. Be2 {[%clk 0:03:00]}  e6 {[%clk 0:02:56]} 8. O-O {[%clk 0:03:00]}  Be7 {[%clk 0:02:55]} 9. c5 {[%clk 0:02:55]}  O-O {[%clk 0:02:52]} 10. h3 {[%clk 0:02:55]}  Bh5 {[%clk 0:02:51]} 11. Be3 {[%clk 0:02:55]}  Ne4 {[%clk 0:02:47]} 12. Rc1 {[%clk 0:02:53]}  f5 {[%clk 0:02:44]} 13. a3 {[%clk 0:02:37]}  a5 {[%clk 0:02:43]} 14. Na4 {[%clk 0:02:31]}  g5 {[%clk 0:02:36]} 15. Nb6 {[%clk 0:02:30]}  Rb8 {[%clk 0:02:34]} 16. Ne5 {[%clk 0:02:05]}  Bxe2 {[%clk 0:02:23]} 17. Qxe2 {[%clk 0:01:46]}  Nxe5 {[%clk 0:02:22]} 18. dxe5 {[%clk 0:01:47]}  f4 {[%clk 0:02:19]} 19. Bd4 {[%clk 0:01:47]}  Qe8 {[%clk 0:02:09]} 20. Qg4 {[%clk 0:01:17]}  Qg6 {[%clk 0:02:05]} 21. Nd7 {[%clk 0:01:17]}  h5 {[%clk 0:02:02]} 22. Nxf8 {[%clk 0:01:17]}  Rxf8 {[%clk 0:02:00]} 23. Qe2 {[%clk 0:01:17]}  g4 {[%clk 0:01:58]} 24. Qd3 {[%clk 0:01:08]}  f3 {[%clk 0:01:53]} 25. g3 {[%clk 0:00:57]}  gxh3 {[%clk 0:01:51]} 26. Kh2 {[%clk 0:00:54]}  Bg5 {[%clk 0:01:23]} 27. c6 {[%clk 0:00:29]}  bxc6 {[%clk 0:01:22]} 28. Rxc6 {[%clk 0:00:28]}  h4 {[%clk 0:01:21]} 29. Rg1 {[%clk 0:00:13]}  hxg3+ {[%clk 0:01:19]} 30. fxg3 {[%clk 0:00:12]}  Qf5 {[%clk 0:00:59]} 31. Rc2 {[%clk 0:00:10]}  Qg4 {[%clk 0:00:56]} 32. Bf2 {[%clk 0:00:08]}  Bh6 {[%clk 0:00:54]} 33. Qe3 {[%clk 0:00:06]}  Bg7 {[%clk 0:00:53]} 34. Qd4 {[%clk 0:00:05]}  Qg5 {[%clk 0:00:49]} 35. Qd3 {[%clk 0:00:05]}  Bxe5 {[%clk 0:00:48]} 36. Kh1 {[%clk 0:00:01]}  Qf5 {[%clk 0:00:46]} 37. Qe3 {[%clk 0:00:01]}  d4 {[%clk 0:00:43]} 0-1


[Site "https://www.chess.com"]

[Event "Titled Tuesday Blitz February 21 Late 2023"]
[White "Drnovsek, Gal"]
[Black "Bhavikatti, Neil"]
[WhiteFideId "14607077"]
[BlackFideId "30935024"]
[WhiteElo "2397"]
[BlackElo "2051"]
[Result "0-1"]
[Round "11"]
[TimeControl "180+2"]
[Date "2023.02.21"]
[WhiteClock "0:01:46"]
[BlackClock "0:02:01"]

1. e4 {[%clk 0:02:56]}  e5 {[%clk 0:03:00]} 2. Nf3 {[%clk 0:02:56]}  Nc6 {[%clk 0:03:01]} 3. d4 {[%clk 0:02:56]}  exd4 {[%clk 0:03:01]} 4. Nxd4 {[%clk 0:02:57]}  Nf6 {[%clk 0:03:01]} 5. Nxc6 {[%clk 0:02:57]}  bxc6 {[%clk 0:03:02]} 6. e5 {[%clk 0:02:58]}  Qe7 {[%clk 0:03:02]} 7. Qe2 {[%clk 0:02:59]}  Nd5 {[%clk 0:03:02]} 8. c4 {[%clk 0:03:00]}  Ba6 {[%clk 0:03:03]} 9. Nd2 {[%clk 0:03:00]}  g6 {[%clk 0:03:02]} 10. Nf3 {[%clk 0:03:01]}  Qb4+ {[%clk 0:03:02]} 11. Kd1 {[%clk 0:03:00]}  Nb6 {[%clk 0:02:58]} 12. Qc2 {[%clk 0:02:25]}  Bxc4 {[%clk 0:02:51]} 13. Bd2 {[%clk 0:02:25]}  Qb5 {[%clk 0:02:49]} 14. a4 {[%clk 0:02:19]}  Qa6 {[%clk 0:02:42]} 15. Bxc4 {[%clk 0:02:15]}  Qxc4 {[%clk 0:02:42]} 16. b3 {[%clk 0:02:13]}  Qxc2+ {[%clk 0:02:41]} 17. Kxc2 {[%clk 0:02:14]}  Nd5 {[%clk 0:02:40]} 18. h4 {[%clk 0:02:09]}  h6 {[%clk 0:02:39]} 19. h5 {[%clk 0:02:09]}  g5 {[%clk 0:02:38]} 20. Nd4 {[%clk 0:02:09]}  a5 {[%clk 0:02:33]} 21. Nf5 {[%clk 0:02:07]}  Bb4 {[%clk 0:02:26]} 22. Bxb4 {[%clk 0:02:04]}  Nxb4+ {[%clk 0:02:22]} 23. Kc3 {[%clk 0:02:03]}  Nd5+ {[%clk 0:02:22]} 24. Kd4 {[%clk 0:02:04]}  Ne7 {[%clk 0:02:21]} 25. g4 {[%clk 0:02:01]}  Nxf5+ {[%clk 0:02:15]} 26. gxf5 {[%clk 0:02:02]}  Ke7 {[%clk 0:02:15]} 27. Rh3 {[%clk 0:02:02]}  Rhb8 {[%clk 0:02:11]} 28. Rc1 {[%clk 0:02:02]}  Rb4+ {[%clk 0:02:11]} 29. Rc4 {[%clk 0:02:02]}  Rab8 {[%clk 0:02:11]} 30. Rd3 {[%clk 0:01:58]}  d6 {[%clk 0:02:06]} 31. f4 {[%clk 0:01:49]}  gxf4 {[%clk 0:02:02]} 32. Ke4 {[%clk 0:01:49]}  d5+ {[%clk 0:02:01]} 33. Kxf4 {[%clk 0:01:46]} 0-1


[Site "https://www.chess.com"]

[Event "Titled Tuesday Blitz February 21 Late 2023"]
[White "Womacka, Mathias"]
[Black "Avgoustopoulos, Christian"]
[WhiteFideId "4611390"]
[BlackFideId "2122294"]
[WhiteElo "2396"]
[BlackElo "1969"]
[Result "1-0"]
[Round "11"]
[TimeControl "180+2"]
[Date "2023.02.21"]
[WhiteClock "0:02:18"]
[BlackClock "0:02:05"]

1. e4 {[%clk 0:03:00]}  e6 {[%clk 0:02:58]} 2. d4 {[%clk 0:02:59]}  d5 {[%clk 0:02:58]} 3. Nd2 {[%clk 0:02:59]}  c5 {[%clk 0:02:58]} 4. exd5 {[%clk 0:02:59]}  exd5 {[%clk 0:02:56]} 5. Ngf3 {[%clk 0:02:59]}  Nc6 {[%clk 0:02:55]} 6. Bb5 {[%clk 0:02:57]}  Bd6 {[%clk 0:02:55]} 7. dxc5 {[%clk 0:02:57]}  Bxc5 {[%clk 0:02:54]} 8. O-O {[%clk 0:02:56]}  Ne7 {[%clk 0:02:54]} 9. Nb3 {[%clk 0:02:56]}  Bd6 {[%clk 0:02:53]} 10. Re1 {[%clk 0:02:55]}  O-O {[%clk 0:02:53]} 11. Bd3 {[%clk 0:02:55]}  Bg4 {[%clk 0:02:51]} 12. Bxh7+ {[%clk 0:02:53]}  Kh8 {[%clk 0:02:43]} 13. Bd3 {[%clk 0:02:52]}  Ne5 {[%clk 0:02:34]} 14. Be2 {[%clk 0:02:44]}  Qc7 {[%clk 0:02:28]} 15. Nxe5 {[%clk 0:02:40]}  Bxe2 {[%clk 0:02:24]} 16. Qxe2 {[%clk 0:02:38]}  Nc6 {[%clk 0:02:09]} 17. Nxc6 {[%clk 0:02:23]}  Bxh2+ {[%clk 0:02:09]} 18. Kh1 {[%clk 0:02:23]}  bxc6 {[%clk 0:02:09]} 19. Qh5+ {[%clk 0:02:21]}  Kg8 {[%clk 0:02:07]} 20. Qxh2 {[%clk 0:02:18]}  Qa5 {[%clk 0:02:05]} 1-0


[Site "https://www.chess.com"]